bitfinex/quotes_BTCUSD_20240915
["timestamp","ask_amount","ask_price","bid_price","bid_amount"]
[1726420449359,0.166721,59981.0,59977.0,0.166729]
[1726420449616,0.500144,59983.0,59978.0,0.166726]
[1726420449849,0.19247683,59985.0,59973.0,1.2696]
[1726420450069,0.166738,59974.0,59973.0,1.2696]
[1726420450334,0.333406,59987.0,59973.0,1.603081]
[1726420450576,0.00737984,59974.0,59973.0,1.2696]
[1726420450836,0.166729,59978.0,59973.0,1.436341]
[1726420451078,0.166729,59978.0,59973.0,0.166741]
[1726420451301,0.00740287,59977.0,59975.0,0.166736]
[1726420451752,0.166723,59980.0,59975.0,0.166736]
[1726420451978,0.00739728,59976.0,59974.0,0.166738]
[1726420452235,0.166726,59979.0,59974.0,0.166738]
[1726420452701,0.00740846,59978.0,59974.0,0.166738]
[1726420453787,0.17413646,59978.0,59974.0,0.166738]
[1726420455108,0.16673,59977.0,59972.0,0.167565]
[1726420455323,0.00740846,59978.0,59972.0,0.167565]
[1726420455324,0.00740846,59978.0,59972.0,0.000822]
[1726420455547,0.166726,59979.0,59972.0,0.000822]
[1726420455548,0.00740287,59977.0,59974.0,0.166737]
[1726420456005,0.166726,59979.0,59974.0,0.166737]
[1726420456006,0.00739728,59976.0,59974.0,0.166737]
[1726420456447,0.166726,59979.0,59974.0,0.166737]
[1726420456666,0.0073917,59975.0,59974.0,0.166737]
[1726420456879,0.166731,59977.0,59972.0,0.167564]
[1726420457129,0.0073917,59975.0,59972.0,0.000822]
[1726420457361,0.00739728,59976.0,59974.0,0.166737]
[1726420457591,0.166725,59979.0,59974.0,0.166737]
[1726420457842,0.0073917,59975.0,59974.0,0.166737]
[1726420458047,0.166725,59979.0,59975.0,0.166735]
[1726420458305,0.168365,59981.0,59976.0,0.166732]
[1726420458530,0.168365,59981.0,59977.0,0.166729]
[1726420458531,0.168364,59981.0,59977.0,0.166729]
[1726420459174,0.00741963,59980.0,59977.0,0.166729]
[1726420459402,0.00741963,59980.0,59974.0,0.333476]
[1726420459623,0.34086563,59980.0,59974.0,0.166737]
[1726420459840,0.166728,59978.0,59974.0,0.166738]
[1726420460294,0.00740287,59977.0,59974.0,0.166738]
[1726420460512,0.00740287,59977.0,59972.0,0.000822]
[1726420460513,0.17413287,59977.0,59972.0,0.000822]
[1726420460755,0.17413287,59977.0,59973.0,0.16674]
[1726420460987,0.00740287,59977.0,59972.0,0.000822]
[1726420461234,0.166737,59975.0,59972.0,0.000822]
[1726420461442,0.17413387,59977.0,59972.0,0.000822]
[1726420461657,0.00738611,59974.0,59973.0,0.16674]
[1726420461867,0.166731,59977.0,59973.0,0.16674]
[1726420462079,0.00738611,59974.0,59973.0,0.16674]
[1726420462293,0.166731,59977.0,59973.0,0.16674]
[1726420462505,0.166726,59979.0,59974.0,0.166738]
[1726420462719,0.00739728,59976.0,59974.0,0.166738]
[1726420462934,0.166728,59978.0,59974.0,0.166738]
[1726420463157,0.166728,59978.0,59972.0,0.000822]
[1726420463158,0.00740846,59978.0,59975.0,0.166733]
[1726420463397,0.166725,59979.0,59975.0,0.166733]
[1726420463629,0.166727,59978.0,59973.0,0.500219]
[1726420463870,0.166727,59978.0,59973.0,0.16674]
[1726420464091,0.166732,59977.0,59972.0,0.167564]
[1726420464307,0.166738,59975.0,59972.0,0.000822]
[1726420464527,0.166737,59975.0,59972.0,0.000822]
[1726420464746,0.833707,59973.0,59972.0,0.000822]
[1726420464997,1.02618383,59973.0,59972.0,0.000822]
[1726420465204,0.833707,59973.0,59972.0,0.000822]
[1726420466519,1.16719,59973.0,59972.0,0.000822]
[1726420466747,0.83386,59962.0,59961.0,0.4665]
[1726420466965,0.1,59972.0,59960.0,0.000822]
[1726420466966,0.500325,59961.0,59960.0,0.000822]
[1726420467189,0.833875,59961.0,59960.0,0.000822]
[1726420471086,1.73519612,59961.0,59960.0,0.000822]
[1726420471340,1.668925,59961.0,59960.0,0.000822]
[1726420471544,1.35991883,59960.0,59959.0,0.000822]
[1726420471804,1.86024883,59960.0,59959.0,0.000822]
[1726420472287,1.96024883,59960.0,59959.0,0.000822]
[1726420472951,1.96024883,59960.0,59946.0,0.4665]
[1726420472952,0.166814,59947.0,59946.0,0.4665]
[1726420473172,0.50033,59947.0,59934.0,0.333698]
[1726420473389,0.166832,59941.0,59934.0,0.333698]
[1726420473676,0.166832,59941.0,59936.0,0.166842]
[1726420473951,0.50033,59947.0,59933.0,0.03344]
[1726420473952,0.333672,59940.0,59933.0,0.03344]
[1726420474186,0.333655,59943.0,59936.0,0.166844]
[1726420474421,0.333652,59943.0,59935.0,0.1707538]
[1726420474671,0.166837,59939.0,59935.0,0.0039078]
[1726420474905,0.333652,59943.0,59935.0,0.0039078]
[1726420475112,0.166831,59941.0,59936.0,0.166842]
[1726420476866,0.333637,59946.0,59937.0,0.166841]
[1726420476867,0.166828,59942.0,59937.0,0.166841]
[1726420478483,0.33365,59943.0,59935.0,0.1707538]
[1726420478705,0.333667,59940.0,59935.0,0.0039078]
[1726420479432,0.3193,59943.0,59935.0,0.0039078]
[1726420480175,0.166837,59939.0,59935.0,0.0039078]
[1726420480378,0.16684,59938.0,59935.0,0.0039078]
[1726420480845,0.166834,59940.0,59935.0,0.1707538]
[1726420481060,0.166837,59939.0,59935.0,0.0039078]
[1726420481263,0.3193,59943.0,59937.0,0.000823]
[1726420481264,0.166839,59938.0,59937.0,0.000823]
[1726420481805,0.1822,59951.0,59937.0,0.000823]
[1726420482035,0.166827,59943.0,59938.0,0.166837]
[1726420482260,0.50033,59942.0,59938.0,0.166837]
[1726420482486,0.66716,59942.0,59937.0,0.000823]
[1726420482705,0.66716,59942.0,59937.0,0.167664]
[1726420482919,0.166831,59941.0,59937.0,0.000823]
[1726420483343,0.166831,59941.0,59937.0,0.167664]
[1726420483557,0.166831,59941.0,59937.0,0.000823]
[1726420485852,0.50033,59942.0,59939.0,0.166836]
[1726420486067,0.667158,59942.0,59937.0,0.167663]
[1726420486310,0.50033,59942.0,59939.0,0.166834]
[1726420486540,0.50033,59942.0,59937.0,0.334503]
[1726420486541,0.50033,59942.0,59941.0,0.16683]
[1726420487199,0.50033,59942.0,59941.0,1.02662883]
[1726420487415,0.50033,59942.0,59941.0,1.36028983]
[1726420488335,0.10033,59942.0,59941.0,1.40818983]
[1726420488765,0.166778,59960.0,59955.0,0.166789]
[1726420489291,0.001646,59961.0,59951.0,0.333603]
[1726420489505,0.166787,59957.0,59953.0,0.166797]
[1726420489732,0.333564,59959.0,59953.0,0.166797]
[1726420490180,0.166784,59958.0,59953.0,0.166797]
[1726420490407,0.268423,59961.0,59952.0,0.333596]
[1726420490627,0.166777,59960.0,59955.0,0.16679]
[1726420490848,0.101646,59961.0,59956.0,0.166788]
[1726420491070,0.268421,59961.0,59952.0,0.333596]
[1726420491296,0.166778,59960.0,59955.0,0.166791]
[1726420491800,0.166781,59959.0,59954.0,0.166794]
[1726420492022,0.001646,59961.0,59956.0,0.166786]
[1726420492250,0.001646,59961.0,59960.0,0.35925383]
[1726420492473,0.001646,59961.0,59960.0,1.02636383]
[1726420492690,0.001646,59961.0,59960.0,0.833887]
[1726420493142,0.001646,59961.0,59960.0,1.167442]
[1726420493367,0.001646,59961.0,59960.0,1.35991883]
[1726420494682,0.001646,59961.0,59960.0,1.167442]
[1726420496756,0.001646,59961.0,59960.0,1.35991883]
[1726420500335,0.001646,59961.0,59960.0,0.833887]
[1726420501047,0.001646,59961.0,59959.0,0.000823]
[1726420501791,0.168421,59961.0,59959.0,0.000823]
[1726420502012,0.001646,59961.0,59959.0,0.000823]
[1726420502239,0.001646,59961.0,59949.0,0.333612]
[1726420502240,0.166791,59956.0,59949.0,0.333612]
[1726420502456,0.500362,59957.0,59951.0,0.166801]
[1726420502676,0.500362,59957.0,59949.0,0.333612]
[1726420502677,0.166788,59957.0,59953.0,0.166797]
[1726420502901,0.166789,59956.0,59951.0,0.1668]
[1726420503128,0.166789,59956.0,59951.0,0.166802]
[1726420503384,0.333555,59960.0,59941.0,1.60326]
[1726420503385,0.19247683,59960.0,59941.0,1.60326]
[1726420503616,0.166803,59951.0,59942.0,0.333651]
[1726420503836,0.166805,59950.0,59944.0,0.16682]
[1726420504062,0.166805,59950.0,59937.0,0.362663]
[1726420504063,0.1839,59953.0,59937.0,0.000823]
[1726420504357,0.166831,59941.0,59937.0,0.000823]
[1726420504579,0.50447683,59952.0,59937.0,0.000823]
[1726420504580,0.333628,59947.0,59937.0,0.000823]
[1726420504810,0.166823,59944.0,59937.0,0.000823]
[1726420505030,0.166823,59944.0,59939.0,0.166836]
[1726420505254,0.19247683,59948.0,59937.0,0.000823]
[1726420505478,0.333651,59943.0,59937.0,0.000823]
[1726420505695,0.166834,59940.0,59937.0,0.000823]
[1726420505932,0.333656,59942.0,59937.0,0.000823]
[1726420506152,0.166839,59938.0,59937.0,0.000823]
[1726420506589,0.500517,59938.0,59937.0,0.000823]
[1726420507029,0.166834,59940.0,59937.0,0.000823]
[1726420507504,0.19247683,59944.0,59937.0,0.000823]
[1726420507505,0.500517,59938.0,59937.0,0.000823]
[1726420507727,0.166839,59938.0,59937.0,0.000823]
[1726420508861,0.696917,59938.0,59937.0,0.000823]
[1726420509083,0.696917,59938.0,59921.0,0.777722]
[1726420509084,0.166869,59928.0,59921.0,0.000822]
[1726420509312,0.166869,59928.0,59924.0,0.000822]
[1726420509313,0.166867,59928.0,59924.0,0.000822]
[1726420510186,0.333701,59934.0,59924.0,0.000822]
[1726420510412,0.1964,59938.0,59924.0,0.000822]
[1726420510631,0.333718,59931.0,59924.0,0.000822]
[1726420510854,0.166872,59926.0,59924.0,0.000822]
[1726420511313,0.500616,59926.0,59924.0,0.000822]
[1726420511529,0.500625,59925.0,59924.0,0.000822]
[1726420511746,0.834375,59925.0,59924.0,0.000822]
[1726420512034,0.834417,59922.0,59921.0,0.000822]
[1726420512699,1.268184,59922.0,59921.0,0.000822]
[1726420512922,0.934417,59922.0,59921.0,0.000822]
[1726420513163,0.60065,59922.0,59921.0,0.000822]
[1726420513416,0.934417,59922.0,59921.0,0.000822]
[1726420513655,0.60065,59922.0,59921.0,0.000822]
[1726420513872,0.934417,59922.0,59921.0,0.000822]
[1726420514341,0.934417,59922.0,59918.0,0.000822]
[1726420514342,0.500674,59919.0,59918.0,0.000822]
[1726420514584,0.834457,59919.0,59918.0,0.000822]
[1726420515496,0.166891,59919.0,59918.0,0.000822]
[1726420515708,0.500674,59919.0,59918.0,0.000822]
[1726420516164,0.16689,59920.0,59918.0,0.000822]
[1726420516381,0.1,59923.0,59918.0,0.000822]
[1726420516598,0.530146,59926.0,59920.0,0.333777]
[1726420516599,0.1964,59926.0,59920.0,0.333777]
[1726420516813,0.1,59925.0,59920.0,0.333777]
[1726420517080,0.333712,59932.0,59920.0,0.333777]
[1726420517081,0.1964,59933.0,59922.0,0.19247683]
[1726420517320,0.3598661,59939.0,59927.0,0.333737]
[1726420517321,0.0261891,59939.0,59927.0,0.333737]
[1726420517540,0.166846,59936.0,59929.0,0.333724]
[1726420517761,0.166846,59936.0,59927.0,0.333737]
[1726420517762,0.166846,59936.0,59932.0,0.166855]
[1726420517989,0.530065,59941.0,59922.0,0.19247683]
[1726420517990,0.1964,59941.0,59922.0,0.19247683]
[1726420518230,0.333677,59939.0,59932.0,0.166855]
[1726420518456,0.166842,59937.0,59932.0,0.166855]
[1726420518701,0.166842,59937.0,59923.0,0.333759]
[1726420518702,0.166845,59936.0,59931.0,0.166858]
[1726420518911,0.1964,59941.0,59936.0,0.333688]
[1726420519138,0.1964,59941.0,59931.0,0.19247683]
[1726420519367,0.1964,59941.0,59936.0,0.333688]
[1726420519633,0.1964,59941.0,59939.0,0.166835]
[1726420520069,0.1964,59941.0,59936.0,0.166843]
[1726420520503,0.1964,59941.0,59937.0,0.166841]
[1726420520719,0.1964,59941.0,59935.0,0.333694]
[1726420521183,0.1964,59941.0,59936.0,0.166843]
[1726420521399,0.166833,59940.0,59933.0,0.333704]
[1726420521617,0.363231,59941.0,59936.0,0.166843]
[1726420522517,0.363231,59941.0,59933.0,0.333705]
[1726420522518,0.1964,59941.0,59933.0,0.333705]
[1726420522737,0.166826,59943.0,59938.0,0.166838]
[1726420523854,0.166828,59942.0,59936.0,0.333687]
[1726420524072,0.333652,59943.0,59927.0,0.52621383]
[1726420524285,0.3143,59944.0,59918.0,0.002822]
[1726420524286,0.3143,59944.0,59923.0,0.03344]
[1726420524507,0.3143,59944.0,59927.0,0.52621183]
[1726420524508,0.166835,59940.0,59927.0,0.52621183]
[1726420524724,0.33365,59943.0,59927.0,0.52621183]
[1726420524725,0.166831,59941.0,59936.0,0.166844]
[1726420524950,0.166831,59941.0,59932.0,0.33371]
[1726420524951,0.166831,59941.0,59937.0,0.166841]
[1726420525186,0.166828,59942.0,59932.0,0.333709]
[1726420525406,0.166828,59942.0,59937.0,0.166841]
[1726420525623,0.166832,59941.0,59936.0,0.166843]
[1726420525851,0.3143,59944.0,59936.0,0.166843]
[1726420525852,0.166833,59940.0,59936.0,0.166843]
[1726420526346,0.3143,59944.0,59934.0,0.333699]
[1726420526572,0.333626,59948.0,59941.0,0.166829]
[1726420526573,0.1,59946.0,59941.0,0.166829]
[1726420526789,0.1,59946.0,59937.0,0.333682]
[1726420526790,0.166825,59943.0,59937.0,0.500521]
[1726420527256,0.166825,59943.0,59937.0,0.166839]
[1726420527478,0.166825,59943.0,59930.0,0.333718]
[1726420527479,0.1,59946.0,59930.0,0.333718]
[1726420527747,0.333639,59945.0,59935.0,0.333691]
[1726420527988,0.166822,59944.0,59939.0,0.166835]
[1726420528620,0.166826,59943.0,59939.0,0.166835]
[1726420529062,0.166826,59943.0,59937.0,0.16684]
[1726420529279,0.166828,59942.0,59937.0,0.16684]
[1726420529709,0.333646,59944.0,59935.0,0.166845]
[1726420529710,0.166835,59940.0,59935.0,0.166845]
[1726420529975,0.166829,59942.0,59935.0,0.333693]
[1726420530257,0.166854,59933.0,59917.0,0.0381708]
[1726420530482,0.166859,59931.0,59925.0,0.166873]
[1726420530714,0.25067711,59936.0,59923.0,0.166878]
[1726420530715,0.333722,59930.0,59923.0,0.166878]
[1726420530967,0.16687,59927.0,59919.0,0.333779]
[1726420531209,0.16687,59927.0,59918.0,0.000822]
[1726420531210,0.16687,59927.0,59920.0,0.333776]
[1726420531452,0.166872,59926.0,59918.0,0.000822]
[1726420531715,0.333743,59927.0,59918.0,0.000822]
[1726420531961,0.33375,59925.0,59918.0,0.000822]
[1726420532214,0.166891,59919.0,59918.0,0.000822]
[1726420532463,0.166887,59921.0,59918.0,0.000822]
[1726420532698,0.166891,59919.0,59918.0,0.000822]
[1726420532935,0.500674,59919.0,59918.0,0.000822]
[1726420533186,0.166891,59919.0,59918.0,0.000822]
[1726420533672,0.500674,59919.0,59918.0,0.000822]
[1726420533929,0.166891,59919.0,59918.0,0.000822]
[1726420534664,0.500674,59919.0,59918.0,0.000822]
[1726420534898,1.2516849,59919.0,59918.0,0.000822]
[1726420535126,0.834472,59918.0,59917.0,0.0047308]
[1726420535369,0.834472,59918.0,59913.0,0.000822]
[1726420535370,0.500716,59914.0,59913.0,0.000822]
[1726420535585,1.168338,59914.0,59913.0,0.000822]
[1726420535804,0.834527,59914.0,59913.0,0.000822]
[1726420536469,1.168338,59914.0,59913.0,0.000822]
[1726420536687,0.834527,59914.0,59913.0,0.000822]
[1726420538038,0.86071954,59914.0,59913.0,0.000822]
[1726420538265,0.834527,59914.0,59913.0,0.000822]
[1726420538479,0.834542,59913.0,59912.0,0.000822]
[1726420539374,1.168359,59913.0,59912.0,0.000822]
[1726420539594,0.166942,59901.0,59900.0,0.0039078]
[1726420540036,0.1,59912.0,59900.0,0.0039078]
[1726420540261,0.1,59909.0,59900.0,0.0039078]
[1726420540480,0.333845,59908.0,59900.0,0.0039078]
[1726420540707,0.166932,59905.0,59900.0,0.0039078]
[1726420541153,0.166935,59904.0,59900.0,0.0039078]
[1726420541860,0.1,59912.0,59900.0,0.3377928]
[1726420542092,0.1,59912.0,59900.0,0.0039078]
[1726420542322,0.1,59912.0,59904.0,0.166933]
[1726420542323,0.33383,59911.0,59904.0,0.166933]
[1726420542558,1.01162513,59918.0,59907.0,0.25067711]
[1726420542559,0.1,59918.0,59907.0,0.25067711]
[1726420542799,0.166885,59922.0,59915.0,0.333805]
[1726420543025,0.166885,59922.0,59914.0,0.25067711]
[1726420543026,0.166884,59922.0,59916.0,0.166899]
[1726420543258,0.166888,59921.0,59914.0,0.25067711]
[1726420543486,0.16689,59920.0,59916.0,0.1669]
[1726420543706,0.168524,59924.0,59914.0,0.58448811]
[1726420543934,0.166882,59923.0,59914.0,0.58448811]
[1726420544177,0.001646,59924.0,59914.0,0.25067711]
[1726420544446,0.001646,59924.0,59918.0,0.25067711]
[1726420544704,0.001646,59924.0,59923.0,0.16688]
[1726420544933,0.001646,59924.0,59923.0,0.500641]
[1726420545154,0.001646,59924.0,59923.0,0.16688]
[1726420545375,0.001646,59924.0,59914.0,0.333806]
[1726420545599,0.001646,59924.0,59921.0,0.166884]
[1726420545842,0.001646,59924.0,59923.0,0.16688]
[1726420546544,0.001646,59924.0,59915.0,0.333805]
[1726420546770,0.001646,59924.0,59920.0,0.166887]
[1726420547461,0.168524,59924.0,59918.0,0.166892]
[1726420547678,0.168524,59924.0,59919.0,0.166891]
[1726420548107,0.166885,59922.0,59914.0,0.333811]
[1726420548372,0.166887,59921.0,59916.0,0.166899]
[1726420549009,0.166882,59923.0,59917.0,0.166897]
[1726420549243,0.001646,59924.0,59911.0,0.25067711]
[1726420549479,0.001646,59924.0,59915.0,0.25067711]
[1726420549713,0.001646,59924.0,59908.0,1.2696]
[1726420549930,0.166899,59917.0,59910.0,0.333828]
[1726420550152,0.001646,59924.0,59913.0,0.333814]
[1726420550366,0.001646,59924.0,59915.0,0.25067711]
[1726420550587,0.001646,59924.0,59918.0,0.333788]
[1726420551053,0.166882,59923.0,59918.0,0.166893]
[1726420551290,0.166884,59922.0,59917.0,0.166895]
[1726420551527,0.333765,59923.0,59913.0,0.333814]
[1726420551747,0.166889,59921.0,59915.0,0.166901]
[1726420551971,0.001646,59924.0,59921.0,0.333771]
[1726420552200,0.001646,59924.0,59922.0,0.166883]
[1726420552420,0.001646,59924.0,59916.0,0.333798]
[1726420552421,0.001646,59924.0,59916.0,0.58447511]
[1726420552642,0.001646,59924.0,59921.0,0.166885]
[1726420553079,0.001646,59924.0,59922.0,0.166883]
[1726420553303,0.001646,59924.0,59920.0,0.166887]
[1726420553511,0.001646,59924.0,59916.0,0.25067711]
[1726420553728,0.168524,59924.0,59912.0,0.25150011]
[1726420553947,0.168525,59924.0,59913.0,0.333813]
[1726420554170,0.168526,59924.0,59912.0,0.000823]
[1726420554394,0.168526,59924.0,59917.0,0.333791]
[1726420554633,0.001646,59924.0,59913.0,0.333815]
[1726420554846,0.001646,59924.0,59912.0,0.000823]
[1726420554847,0.333762,59923.0,59914.0,0.333811]
[1726420555069,0.166884,59922.0,59915.0,0.333803]
[1726420555287,0.166884,59922.0,59917.0,0.166897]
[1726420556417,0.166881,59923.0,59918.0,0.166893]
[1726420557316,0.001646,59924.0,59918.0,0.333787]
[1726420557541,0.001646,59924.0,59919.0,0.333783]
[1726420557756,0.001646,59924.0,59921.0,0.166886]
[1726420557973,0.001646,59924.0,59919.0,0.333783]
[1726420558186,0.001646,59924.0,59917.0,0.25067711]
[1726420558187,0.001646,59924.0,59922.0,0.166883]
[1726420558403,0.001646,59924.0,59923.0,0.834402]
[1726420559059,0.001646,59924.0,59923.0,1.168163]
[1726420559277,0.001646,59924.0,59923.0,0.834402]
[1726420560624,0.001646,59924.0,59923.0,0.500641]
[1726420561321,0.001646,59924.0,59923.0,1.168163]
[1726420561541,0.001646,59924.0,59923.0,1.474063]
[1726420561774,0.001646,59924.0,59923.0,1.507503]
[1726420562721,0.25032125,59941.0,59940.0,0.166833]
[1726420563169,0.001646,59943.0,59940.0,0.166833]
[1726420564409,0.001646,59943.0,59941.0,0.16683]
[1726420564892,0.001646,59943.0,59938.0,0.333674]
[1726420565139,0.001646,59943.0,59940.0,0.166833]
[1726420565652,0.001646,59943.0,59935.0,0.333691]
[1726420565892,0.001646,59943.0,59930.0,0.25067711]
[1726420565893,0.001646,59943.0,59930.0,0.333721]
[1726420566139,0.001646,59943.0,59933.0,0.166851]
[1726420566140,0.333659,59942.0,59933.0,0.166851]
[1726420566354,0.166837,59939.0,59934.0,0.16685]
[1726420567069,0.33367,59940.0,59927.0,0.333736]
[1726420567280,0.33367,59940.0,59923.0,0.340162]
[1726420567281,0.16684,59938.0,59923.0,0.306722]
[1726420567501,0.001646,59943.0,59934.0,0.166849]
[1726420567502,0.333661,59941.0,59934.0,0.166849]
[1726420567722,0.166836,59939.0,59934.0,0.166849]
[1726420567933,0.333661,59941.0,59935.0,0.166846]
[1726420568147,0.166834,59940.0,59935.0,0.166846]
[1726420568365,0.333661,59941.0,59933.0,0.16685]
[1726420568366,0.166837,59939.0,59933.0,0.16685]
[1726420568581,0.166831,59941.0,59927.0,0.333738]
[1726420568815,0.166831,59941.0,59936.0,0.166842]
[1726420569041,0.001646,59943.0,59934.0,0.166849]
[1726420569255,0.166835,59940.0,59935.0,0.166847]
[1726420570811,0.168472,59943.0,59938.0,0.166836]
[1726420571033,0.168472,59943.0,59941.0,0.166829]
[1726420571034,0.001646,59943.0,59941.0,0.166829]
[1726420571318,0.001646,59943.0,59942.0,0.166827]
[1726420571515,0.001646,59943.0,59942.0,0.50381855]
[1726420571737,0.001646,59943.0,59942.0,1.50072855]
[1726420571962,0.001646,59943.0,59942.0,1.530832]
[1726420573329,0.001646,59959.0,59942.0,1.530832]
[1726420573330,0.001646,59959.0,59958.0,0.166783]
[1726420573541,0.001646,59959.0,59958.0,0.500349]
[1726420573761,0.001646,59959.0,59958.0,0.833915]
[1726420573953,0.001646,59959.0,59958.0,0.500349]
[1726420574656,0.001646,59959.0,59958.0,0.833915]
[1726420574877,0.001646,59959.0,59958.0,1.200921]
[1726420577156,0.001646,59959.0,59958.0,1.223921]
[1726420577379,0.001646,59961.0,59960.0,1.08656411]
[1726420577809,0.001646,59961.0,59960.0,1.77271911]
[1726420578280,0.001646,59961.0,59960.0,1.77071911]
[1726420578544,0.001646,59961.0,59960.0,1.74771911]
[1726420578779,0.001646,59961.0,59960.0,1.41811911]
[1726420579942,0.433392,59990.0,59963.0,0.002]
[1726420580171,0.001644,59981.0,59979.0,0.166725]
[1726420581944,0.001644,59981.0,59979.0,0.41740211]
[1726420582608,0.001644,59981.0,59979.0,0.45084211]
[1726420583282,0.001644,59981.0,59979.0,0.41740211]
[1726420583501,0.001644,59981.0,59979.0,0.166725]
[1726420583721,0.001644,59981.0,59979.0,0.500175]
[1726420583953,0.001644,59981.0,59979.0,1.08430211]
[1726420584169,0.001644,59981.0,59979.0,0.500175]
[1726420584624,0.001644,59981.0,59979.0,0.833625]
[1726420585527,0.001644,59981.0,59979.0,0.166725]
[1726420585965,0.001644,59981.0,59976.0,0.166732]
[1726420586183,0.001644,59981.0,59974.0,0.333477]
[1726420586397,0.166735,59976.0,59965.0,1.2696]
[1726420586682,0.001644,59981.0,59966.0,1.2696]
[1726420586683,0.166729,59978.0,59966.0,1.2696]
[1726420586898,0.1706308,59980.0,59975.0,0.166735]
[1726420587106,0.166725,59979.0,59966.0,1.2696]
[1726420587315,0.19288837,59979.0,59966.0,1.2696]
[1726420587751,0.19288837,59979.0,59974.0,0.166738]
[1726420588192,0.166727,59978.0,59974.0,0.166738]
[1726420588415,0.02616337,59979.0,59973.0,0.16674]
[1726420588599,0.166728,59978.0,59973.0,0.16674]
[1726420589292,0.02616337,59979.0,59974.0,0.166737]
[1726420589931,0.19288837,59979.0,59974.0,0.166737]
[1726420590577,0.19288837,59979.0,59975.0,0.166735]
[1726420591021,0.02616337,59979.0,59975.0,0.166735]
[1726420591234,0.02616337,59979.0,59972.0,0.333485]
[1726420591453,0.02616337,59979.0,59966.0,1.2696]
[1726420591454,0.001644,59978.0,59970.0,0.00333449]
[1726420591733,0.001644,59978.0,59974.0,0.333472]
[1726420591940,0.0039078,59980.0,59976.0,0.166731]
[1726420592390,0.1706308,59980.0,59974.0,0.333472]
[1726420592603,0.166725,59979.0,59975.0,0.166734]
[1726420592829,0.500177,59979.0,59970.0,0.333499]
[1726420593045,0.166735,59976.0,59970.0,0.333499]
[1726420593259,0.166732,59977.0,59972.0,0.166743]
[1726420593693,0.333451,59979.0,59970.0,0.333499]
[1726420593694,0.166728,59978.0,59973.0,0.16674]
[1726420593904,0.166728,59978.0,59970.0,0.333499]
[1726420594107,0.166728,59978.0,59974.0,0.166738]
[1726420594293,0.166731,59977.0,59970.0,0.333499]
[1726420594547,0.166731,59977.0,59972.0,0.166743]
[1726420595210,0.0039078,59980.0,59966.0,1.2696]
[1726420595413,0.166738,59975.0,59970.0,0.166749]
[1726420595631,0.166739,59974.0,59968.0,0.333509]
[1726420595838,0.166738,59975.0,59970.0,0.166748]
[1726420596069,0.333466,59976.0,59968.0,0.166754]
[1726420596283,0.166741,59974.0,59969.0,0.166752]
[1726420596500,0.333474,59975.0,59966.0,0.333519]
[1726420596718,0.333474,59975.0,59968.0,0.166754]
[1726420596931,0.166743,59973.0,59968.0,0.166754]
[1726420597610,0.166738,59975.0,59970.0,0.166749]
[1726420598322,0.166738,59975.0,59971.0,0.166746]
[1726420598550,0.166732,59977.0,59970.0,0.333497]
[1726420598739,0.333457,59978.0,59962.0,0.34417713]
[1726420599214,0.0039078,59980.0,59962.0,0.34417713]
[1726420599428,0.0039078,59980.0,59967.0,0.34417713]
[1726420599684,0.0039078,59980.0,59974.0,0.333475]
[1726420600128,0.0039078,59980.0,59974.0,0.0033345]
[1726420600349,0.0039078,59980.0,59979.0,0.500175]
[1726420600627,0.0039078,59980.0,59979.0,0.833625]
[1726420601733,0.0039078,59980.0,59979.0,1.167075]
[1726420601975,0.001644,59981.0,59980.0,0.83361]
[1726420603416,0.001644,59997.0,59986.0,0.500116]
[1726420603675,0.001644,59997.0,59986.0,1.166938]
[1726420605969,0.001644,59997.0,59996.0,0.500032]
[1726420606215,0.001644,59997.0,59996.0,1.17740276]
[1726420606436,0.001644,59997.0,59996.0,1.92395776]
[1726420607116,0.001644,59997.0,59996.0,1.95739776]
[1726420607550,0.001644,59997.0,59996.0,2.00698314]
[1726420608002,0.001644,59997.0,59996.0,2.31542573]
[1726420608397,0.001644,59997.0,59996.0,2.24104766]
[1726420608844,0.001644,59997.0,59996.0,2.31542117]
[1726420609053,0.001644,59997.0,59996.0,2.00222117]
[1726420609265,0.001644,59997.0,59996.0,1.22485041]
[1726420609535,0.001644,59997.0,59996.0,0.833387]
[1726420609753,0.001644,59997.0,59996.0,1.65829691]
[1726420610002,0.001644,59997.0,59996.0,1.5859234]
[1726420610197,0.001644,59997.0,59996.0,1.5839234]
[1726420610621,0.001644,59997.0,59996.0,2.8535234]
[1726420611281,0.001644,59997.0,59996.0,2.92789687]
[1726420611486,0.001644,59997.0,59996.0,2.8535234]
[1726420611694,0.001644,59997.0,59996.0,3.19729455]
[1726420611913,0.166626,60015.0,60006.0,0.16665]
[1726420612125,0.166625,60015.0,60006.0,0.83325]
[1726420612328,0.166628,60014.0,60006.0,0.83325]
[1726420613399,0.333225,60020.0,60006.0,0.83325]
[1726420613605,0.1,60028.0,60006.0,0.83325]
[1726420613606,0.16662,60017.0,60006.0,0.83325]
[1726420614013,0.3626308,60016.0,60006.0,0.83325]
[1726420614657,0.1960078,60016.0,60006.0,0.83325]
[1726420615347,0.1960078,60016.0,60006.0,1.16655]
[1726420617091,0.1960078,60016.0,60006.0,1.24101909]
[1726420617299,0.1960078,60016.0,60006.0,1.21621913]
[1726420617508,0.1960078,60016.0,60006.0,1.52447422]
[1726420618374,0.1960078,60016.0,60006.0,1.52448216]
[1726420619250,0.1960078,60016.0,60006.0,1.16655]
[1726420619455,0.1960078,60016.0,60006.0,1.5244584]
[1726420619911,0.1960078,60016.0,60006.0,1.86822955]
[1726420620371,0.1960078,60016.0,60006.0,1.79376046]
[1726420620589,0.1960078,60016.0,60006.0,1.79389917]